bitfinex/quotes_ETHUSD_20260108
["timestamp","ask_amount","ask_price","bid_price","bid_amount"]
[1767853509892,1.89191045,3118.0,3116.0,1.79556406]
[1767853510272,7.02151112,3117.9,3115.3,1.79556406]
[1767853510477,7.02151112,3117.9,3114.2,5.04546149]
[1767853510478,0.89242378,3117.8,3115.1,0.07345192]
[1767853510664,0.89242378,3117.8,3115.5,3.20974202]
[1767853510863,1.89191045,3118.0,3115.6,5.91864927]
[1767853510864,0.841,3117.7,3115.6,5.91864927]
[1767853511083,6.41519116,3117.6,3115.9,1.79556406]
[1767853511284,9.62278674,3117.6,3115.9,1.79556406]
[1767853511490,6.41519116,3117.6,3115.9,1.79556406]
[1767853511902,6.41519116,3117.6,3115.9,2.63556406]
[1767853512201,1.04637572,3117.5,3115.2,1.79556406]
[1767853512364,0.90092436,3117.4,3115.3,0.84]
[1767853512569,1.04637572,3117.5,3115.4,1.79556406]
[1767853512791,0.90092436,3117.4,3115.4,3.20984501]
[1767853512966,0.19473001,3117.3,3115.6,1.79556406]
[1767853513181,6.41601436,3117.2,3115.7,1.79556406]
[1767853513387,6.61057595,3117.3,3115.8,2.63556406]
[1767853513708,6.61057595,3117.3,3115.7,3.20952249]
[1767853513709,3.40263428,3117.3,3116.0,1.79556406]
[1767853513874,0.66104394,3117.2,3116.0,1.79556406]
[1767853514998,0.66104394,3117.2,3115.8,0.84]
[1767853515196,6.4162202,3117.1,3115.8,0.84]
[1767853515402,7.2572202,3117.1,3115.3,3.28331553]
[1767853515590,10.4653303,3117.1,3115.4,2.63556406]
[1767853515792,0.79182641,3117.0,3115.4,2.63556406]
[1767853515994,0.79182641,3117.0,3115.5,1.79556406]
[1767853516331,0.79182641,3117.0,3115.6,3.20957361]
[1767853516473,0.79182641,3117.0,3115.9,1.79556406]
[1767853516673,0.79182641,3117.0,3116.0,0.84]
[1767853516977,3.40267437,3117.3,3116.1,1.79556406]
[1767853517320,6.61061873,3117.3,3116.1,1.79556406]
[1767853517874,6.61061873,3117.3,3115.5,1.79556406]
[1767853517875,13.02650745,3117.3,3115.5,1.79556406]
[1767853518079,6.61061873,3117.3,3115.6,0.07345192]
[1767853518281,0.66106187,3117.2,3116.1,1.79556406]
[1767853518603,0.66106187,3117.2,3116.2,1.79556406]
[1767853518813,0.66106187,3117.2,3115.6,0.07345192]
[1767853518989,0.66106187,3117.2,3115.7,0.84]
[1767853519679,0.66106187,3117.2,3115.8,0.07345192]
[1767853520010,0.001,3116.7,3116.0,0.07345192]
[1767853520799,0.92919498,3118.2,3116.3,0.07345192]
[1767853521094,3.2071354,3118.1,3116.3,0.07345192]
[1767853521296,3.2071354,3118.1,3116.4,1.79556406]
[1767853521619,9.62093514,3118.2,3116.8,1.79556406]
[1767853521620,3.20697838,3118.2,3116.8,1.79556406]
[1767853521775,0.32069784,3118.1,3116.8,1.79556406]
[1767853522110,9.62155227,3118.0,3116.8,1.79556406]
[1767853522404,9.62155227,3118.0,3116.1,1.86901598]
[1767853522607,9.62155227,3118.0,3116.2,0.84]
[1767853522906,9.62155227,3118.0,3116.3,0.91345192]
[1767853523205,0.99422501,3117.9,3116.3,3.20889934]
[1767853523510,0.99422501,3117.9,3116.4,0.91345192]
[1767853523919,6.41477964,3117.8,3116.4,4.12225959]
[1767853524090,3.20738982,3117.8,3116.6,0.07345192]
[1767853524290,0.74090047,3117.7,3116.6,0.07345192]
[1767853524615,6.41477964,3117.8,3116.6,0.07345192]
[1767853524788,6.41477964,3117.8,3116.6,1.86901598]
[1767853524983,6.41477964,3117.8,3116.6,2.63556406]
[1767853525206,9.62216946,3117.8,3116.6,2.63556406]
[1767853525516,0.96221695,3117.7,3116.6,2.63556406]
[1767853525886,6.41519116,3117.6,3116.6,2.63556406]
[1767853526386,0.84,3118.2,3116.6,2.63556406]
[1767853526387,6.41131266,3119.5,3117.5,1.86901598]
[1767853526619,6.41131266,3119.5,3117.5,0.84]
[1767853526620,0.64113127,3119.4,3117.5,0.84]
[1767853526932,0.64113127,3119.4,3116.9,1.79556406]
[1767853526933,2.34702086,3119.4,3116.9,1.79556406]
[1767853527228,1.70588959,3119.3,3117.0,0.84]
[1767853527520,0.84,3119.2,3117.0,0.84]
[1767853528089,12.82421208,3119.1,3117.0,4.04812717]
[1767853528285,1.36642121,3119.0,3117.1,0.73298904]
[1767853528492,1.70588959,3118.9,3116.0,1.86901598]
[1767853528799,1.70588959,3118.9,3116.5,3.20870796]
[1767853529520,1.70588959,3118.9,3116.7,3.20851079]
[1767853529697,1.70588959,3118.9,3116.8,0.84]
[1767853530390,12.82544568,3118.8,3116.8,0.84]
[1767853530588,2.29313353,3118.7,3116.8,4.45326545]
[1767853531119,2.29313353,3118.7,3116.8,1.2448482]
[1767853531492,2.29313353,3118.7,3116.8,4.45325667]
[1767853531687,2.29313353,3118.7,3116.3,1.86901598]
[1767853531688,3.99902312,3118.7,3116.3,1.79556406]
[1767853531930,0.07345192,3117.1,3114.5,1.79556406]
[1767853532221,0.07345192,3117.1,3116.3,0.002]
[1767853532415,1.72478694,3116.9,3114.7,6.42116414]
[1767853532638,9.62463906,3117.0,3114.9,1.76945432]
[1767853532858,9.62463906,3117.0,3114.8,0.84]
[1767853532859,9.62463906,3117.0,3116.0,0.002]
[1767853533194,1.72478694,3116.9,3116.0,0.002]
[1767853533392,1.1349426,3116.8,3116.0,0.002]
[1767853534324,9.62556549,3116.7,3116.0,0.002]
[1767853535896,6.41704366,3116.7,3116.0,0.002]
[1767853536411,12.83202872,3117.2,3116.0,0.002]
[1767853536726,1.36720287,3117.1,3116.0,0.002]
[1767853537921,2.20720287,3117.1,3116.0,0.002]
[1767853538125,1.36720287,3117.1,3116.0,0.002]
[1767853538294,9.62463906,3117.0,3116.0,0.002]
[1767853538494,6.41642604,3117.0,3116.0,0.002]
[1767853539029,10.18070635,3117.0,3116.0,0.002]
[1767853539844,13.38891937,3117.0,3116.0,0.002]
[1767853540326,10.18070635,3117.0,3116.0,0.002]
[1767853540717,13.38891937,3117.0,3114.8,3.21046249]
[1767853541096,13.38891937,3117.0,3114.9,0.84]
[1767853541296,13.38891937,3117.0,3115.0,0.40504625]
[1767853541297,1.33889194,3116.9,3115.0,0.40504625]
[1767853541529,0.84,3116.8,3114.9,0.84]
[1767853541917,1.72478694,3116.7,3114.9,0.84]
[1767853542099,1.72478694,3116.7,3114.9,4.05033908]
[1767853542424,9.62587434,3116.6,3114.9,4.05033908]
[1767853542827,3.20862478,3116.6,3115.1,0.07345192]
[1767853543029,0.55606729,3117.0,3115.4,1.76945432]
[1767853543235,6.41477964,3117.8,3115.7,1.84290624]
[1767853543396,6.41477964,3117.8,3116.3,0.07345192]
[1767853543397,3.20738982,3117.8,3116.3,0.07345192]
[1767853543601,3.20738982,3117.8,3116.5,0.07345192]
[1767853543807,3.5281288,3117.8,3116.6,0.84]
[1767853544011,6.73551862,3117.8,3116.6,0.84]
[1767853544428,3.5281288,3117.8,3116.6,0.84]
[1767853544629,3.5281288,3117.8,3116.6,4.04853615]
[1767853544936,3.20729118,3117.9,3116.6,7.25716093]
[1767853545347,3.20687554,3118.3,3116.7,0.07345192]
[1767853545838,3.20687554,3118.3,3116.9,0.07345192]
[1767853546002,3.20687554,3118.3,3117.0,0.84]
[1767853546225,0.001,3118.4,3117.1,0.07345192]
[1767853546618,0.001,3118.4,3117.2,6.41601436]
[1767853546823,0.001,3118.4,3117.3,0.72239855]
[1767853547121,0.001,3118.4,3117.4,0.84]
[1767853547427,0.001,3118.4,3117.5,0.84]
[1767853547748,0.001,3118.4,3117.6,0.84]
[1767853548641,0.001,3118.4,3117.6,4.04751862]
[1767853548819,0.001,3118.4,3117.7,1.24475186]
[1767853549021,0.001,3118.4,3117.7,0.40475186]
[1767853549246,0.001,3118.4,3116.5,3.28214203]
[1767853549247,0.001,3118.4,3117.5,4.04761371]
[1767853549446,0.001,3118.4,3117.5,0.84]
[1767853549650,0.001,3118.4,3117.6,3.20758049]
[1767853550048,0.001,3118.4,3117.6,6.41517607]
[1767853550247,1.72578694,3119.8,3117.6,6.41517607]
[1767853550248,2.56578694,3119.8,3117.8,0.07345192]
[1767853550446,6.98797692,3119.7,3117.9,0.84]
[1767853550646,10.19346397,3119.7,3117.9,4.04720863]
[1767853551037,1.72478694,3119.6,3118.0,0.84]
[1767853551241,1.72478694,3119.6,3117.9,0.84]
[1767853551836,1.72478694,3119.6,3117.9,4.04727416]
[1767853552133,3.23716074,3119.5,3117.8,0.65620799]
[1767853552335,3.23716074,3119.5,3117.9,0.84]
[1767853552540,3.23716074,3119.5,3117.6,0.84]
[1767853552541,1.72478694,3119.4,3117.6,0.84]
[1767853552840,6.41169492,3119.3,3117.7,6.4884157]
[1767853553049,1.5123738,3119.5,3117.9,0.07345192]
[1767853553228,0.57710408,3119.7,3118.3,0.07345192]
[1767853553428,3.20640217,3119.8,3118.5,0.07345192]
[1767853553631,6.41180434,3119.8,3118.5,0.07345192]
[1767853553934,6.41180434,3119.8,3118.9,0.07345192]
[1767853553935,0.001,3119.8,3118.9,0.07345192]
[1767853554132,0.001,3119.8,3119.0,0.84]
[1767853554437,0.001,3119.8,3119.1,0.07345192]
[1767853554631,0.001,3119.8,3119.2,3.20595024]
[1767853554831,0.001,3119.8,3119.1,3.2794781]
[1767853555063,0.001,3119.8,3119.1,3.75484701]
[1767853555359,0.001,3119.8,3119.1,0.47536891]
[1767853555537,0.001,3119.8,3118.9,3.20624778]
[1767853555859,0.001,3119.8,3119.0,4.04609308]
[1767853556064,0.001,3119.8,3119.1,4.04605158]
[1767853556550,0.001,3119.8,3119.2,0.07345192]
[1767853556733,0.001,3119.8,3119.2,3.27932809]
[1767853556931,0.001,3119.8,3119.2,4.01187498]
[1767853558054,0.001,3119.8,3119.2,7.21782522]
[1767853558630,0.001,3119.5,3118.7,0.07345192]
[1767853558950,0.001,3119.5,3118.9,0.07345192]
[1767853559553,0.001,3119.5,3118.8,0.84]
[1767853560347,0.001,3119.5,3118.9,0.84]
[1767853560746,0.001,3119.5,3118.6,3.20655214]
[1767853560981,0.001,3119.5,3118.7,4.36709942]
[1767853561201,0.001,3119.5,3118.7,1.16065521]
[1767853561483,0.001,3119.5,3118.9,3.20624456]
[1767853561683,0.001,3119.5,3119.0,0.84]
[1767853561882,0.001,3119.5,3118.7,3.20645783]
[1767853562055,0.001,3119.5,3118.9,3.20623632]
[1767853562259,0.001,3119.5,3118.9,6.48594685]
[1767853562456,0.001,3119.8,3119.0,0.73259469]
[1767853562659,0.001,3119.8,3118.1,1.99460835]
[1767853562899,0.001,3119.8,3118.5,0.07345192]
[1767853563393,0.001,3119.8,3118.7,0.07345192]
[1767853563595,0.001,3119.8,3118.8,0.84]
[1767853564095,1.96762277,3119.8,3117.9,0.07545192]
[1767853564386,0.19676228,3119.7,3118.1,3.28052294]
[1767853564588,0.19676228,3119.7,3118.1,6.48760417]
[1767853564888,6.41107834,3119.6,3118.1,6.48760417]
[1767853565687,3.20553917,3119.6,3118.3,0.07345192]
[1767853566097,3.20547,3119.7,3118.3,0.07345192]
[1767853566303,3.20547,3119.7,3118.5,0.07345192]
[1767853566589,3.20547,3119.7,3118.6,0.839]
[1767853567364,0.001,3119.8,3118.7,3.20646423]
[1767853567559,0.001,3119.8,3118.7,6.48638038]
[1767853567773,0.001,3119.8,3118.8,0.839]
[1767853567972,0.001,3119.8,3118.9,0.47549121]
[1767853568171,0.001,3119.8,3117.8,1.9415538]
[1767853568172,1.96762277,3119.8,3117.8,1.9415538]
[1767853568465,1.96762277,3119.8,3118.4,3.20670974]
[1767853568665,0.001,3119.8,3118.3,0.07345192]
[1767853568995,0.001,3119.8,3118.3,2.01500572]
[1767853569202,1.96762277,3119.8,3118.4,0.20150057]
[1767853569389,1.96762277,3119.8,3118.1,0.07345192]
[1767853569569,1.96762277,3119.8,3118.2,0.839]
[1767853570100,1.96762277,3119.8,3118.3,0.07345192]
[1767853570290,1.96762277,3119.8,3118.5,0.07345192]
[1767853571109,1.96762277,3119.8,3117.8,1.9415538]
[1767853571110,1.96762277,3119.8,3117.1,0.07345192]
[1767853571406,1.96762277,3119.8,3115.9,13.97]
[1767853571407,0.07345192,3116.5,3115.3,1.9415538]
[1767853571593,2.04007469,3116.3,3114.1,0.839]
[1767853571783,1.96662277,3116.1,3114.1,0.839]
[1767853571982,2.4407419,3116.1,3114.1,0.839]
[1767853572306,1.96662277,3116.1,3114.1,0.839]
[1767853572668,1.96662277,3116.1,3114.2,0.07345192]
[1767853573986,1.96662277,3116.1,3114.1,0.839]
[1767853574316,1.96662277,3116.0,3114.1,0.839]
[1767853574606,1.96662277,3116.0,3114.2,0.07345192]
[1767853580607,1.96662277,3116.0,3114.4,0.07345192]
[1767853580903,1.96662277,3116.5,3114.4,0.07345192]
[1767853581101,1.96662277,3116.5,3114.9,0.07345192]
[1767853583077,1.96662277,3116.5,3114.7,0.002]
[1767853583974,1.96662277,3116.5,3114.8,0.07345192]
[1767853584179,1.96662277,3116.9,3115.0,0.07545192]
[1767853584375,1.96662277,3116.9,3115.1,0.91345192]
[1767853584576,0.91344886,3117.0,3115.3,1.32676141]
[1767853584577,0.07344886,3117.0,3115.3,1.32676141]
[1767853584813,2.04007163,3117.0,3115.3,0.07345192]
[1767853585203,2.04007163,3117.0,3115.5,0.07345192]
[1767853585903,0.07344886,3117.0,3115.5,0.07345192]
[1767853586396,0.07344886,3117.0,3115.9,0.07345192]
[1767853586704,0.07344886,3117.0,3116.0,0.84]
[1767853587089,0.07344886,3117.0,3116.1,6.41827924]
[1767853587289,0.07344886,3117.0,3116.2,1.04675129]
[1767853587473,5.17433977,3117.5,3116.2,1.04675129]
[1767853588978,5.17433977,3117.5,3116.3,6.41786734]
[1767853589181,1.96662277,3117.4,3116.2,4.25575389]
[1767853589380,1.96662277,3117.4,3116.2,3.2090026]
[1767853590007,1.96662277,3117.4,3116.2,6.41803924]
[1767853590213,1.96662277,3117.4,3116.0,0.84]
[1767853590383,1.96662277,3117.4,3116.2,3.20902941]
[1767853590579,1.96662277,3117.2,3116.2,6.82296899]
[1767853590883,3.20769847,3117.5,3116.2,6.82296899]
[1767853591085,5.17432124,3117.5,3116.2,6.82296899]
[1767853591304,1.96662277,3117.4,3116.2,6.82296899]
[1767853593197,5.17447993,3117.4,3116.2,6.82296899]
[1767853593397,5.17447993,3117.4,3116.3,0.6822969]
[1767853593816,8.38233709,3117.4,3116.3,0.6822969]
[1767853594317,5.17447993,3117.4,3116.3,0.6822969]
[1767853595021,1.93382679,3117.3,3116.3,0.6822969]
[1767853595716,5.14177398,3117.3,3116.4,3.2088307]
[1767853595926,5.97673709,3117.3,3116.4,3.2088307]
[1767853596118,2.7687899,3117.3,3116.4,3.2088307]
[1767853596290,1.93382679,3117.3,3116.4,3.2088307]
[1767853596491,0.001,3117.0,3116.4,3.2088307]
[1767853598418,1.93482679,3117.0,3116.3,0.6822969]
[1767853598612,1.93482679,3117.0,3116.3,3.20891501]
[1767853599413,1.93482679,3117.0,3116.3,6.41784868]
[1767853600218,1.93482679,3117.0,3116.3,3.20891501]
[1767853602517,1.93482679,3117.0,3116.3,6.41784868]
[1767853602714,0.001,3117.0,3116.3,6.41784868]
[1767853602894,0.001,3117.0,3116.3,3.89119017]
[1767853603623,0.001,3117.0,3116.3,7.10012384]
[1767853604018,0.001,3117.0,3116.3,3.89119017]
[1767853605715,0.001,3117.0,3116.3,7.10012384]
[1767853606023,0.001,3117.0,3116.3,3.89119017]
[1767853606622,0.001,3117.0,3116.4,0.36512684]
[1767853607034,1.93382679,3117.8,3116.4,2.63364415]
[1767853607190,1.93382679,3117.8,3116.6,6.41724956]
[1767853608094,1.93382679,3117.7,3116.6,6.41724956]
[1767853608301,0.001,3117.0,3116.7,0.40490294]
[1767853608501,3.20740063,3117.8,3116.7,0.40490294]
[1767853608502,1.93382679,3117.4,3116.7,0.40490294]
[1767853608694,6.41480126,3117.8,3116.6,3.20862478]
[1767853608695,1.93382679,3117.7,3116.6,3.20862478]
[1767853609225,1.93382679,3117.7,3116.6,6.41724956]
[1767853609426,1.93382679,3117.6,3116.5,6.41745546]
[1767853611726,5.14142894,3117.6,3116.5,6.41745546]
[1767853612225,1.93382679,3117.5,3116.5,6.41745546]
[1767853612462,1.93382679,3117.5,3116.6,0.76225823]
[1767853612931,5.14124435,3117.8,3116.6,2.1266017]
[1767853613133,5.14124435,3117.8,3116.7,3.20852183]
[1767853613302,1.93382679,3117.7,3116.7,3.20852183]
[1767853614028,1.93382679,3117.7,3116.6,3.97084156]
[1767853614233,1.93382679,3117.6,3116.6,3.97084156]
[1767853615830,1.93382679,3117.6,3116.6,7.17946634]
[1767853617121,1.93382679,3118.2,3116.6,8.55083466]
[1767853617320,1.93382679,3118.2,3116.6,5.34220988]
[1767853617520,1.93382679,3118.2,3116.4,1.20512684]
[1767853617721,1.93382679,3118.2,3116.4,4.04882838]
[1767853618098,1.93382679,3118.0,3116.4,0.84]
[1767853618307,1.93382679,3117.8,3116.4,0.84]
[1767853618602,1.93382679,3117.8,3116.4,4.04882917]
[1767853618802,1.93382679,3117.6,3116.4,0.84]
[1767853619735,1.93382679,3117.6,3116.7,0.002]
[1767853620029,1.93382679,3117.4,3116.7,0.002]
[1767853620622,1.93382679,3117.4,3115.3,0.07345192]
[1767853620831,1.93382679,3117.2,3115.1,0.002]
[1767853621027,1.93382679,3117.0,3115.1,0.002]
[1767853621337,1.93382679,3116.8,3115.1,0.002]
[1767853621722,0.27738268,3117.7,3115.3,1.45517959]
[1767853621723,1.93382679,3116.6,3115.3,1.45517959]
[1767853621925,1.93382679,3117.2,3115.5,0.07345192]
[1767853622128,1.9626128,3117.6,3116.3,0.07345192]
[1767853622431,1.9626128,3117.6,3116.5,0.07345192]
[1767853622738,1.9626128,3117.6,3116.4,0.64915252]
[1767853624133,5.17025151,3117.6,3116.6,3.20862478]
[1767853625629,2.05824294,3117.5,3116.5,3.20870013]
[1767853625837,2.05824294,3117.5,3116.5,3.68583059]
[1767853626032,3.20738982,3117.8,3116.5,3.68583059]
[1767853626333,2.05824294,3117.7,3116.5,3.68583059]
[1767853627511,2.05824294,3117.7,3116.5,6.89455832]
[1767853627732,2.05824294,3117.7,3116.6,0.68945583]
[1767853628141,2.05824294,3117.5,3116.4,3.20879351]
[1767853628305,2.05824294,3117.5,3116.4,6.41762421]
[1767853628907,2.05824294,3117.5,3116.3,0.91345192]
[1767853629108,2.05824294,3117.4,3115.5,1.46906028]
[1767853629341,2.05824294,3117.2,3115.7,0.91345192]
[1767853630214,2.05824294,3117.0,3115.9,0.07345192]
[1767853630929,5.26616359,3117.3,3116.1,0.07345192]
[1767853632119,5.26716359,3117.3,3116.1,0.07345192]
[1767853632735,2.05924294,3117.3,3116.2,6.41807328]
[1767853632949,2.05924294,3117.3,3116.3,0.64915252]
[1767853634264,0.001,3117.3,3116.3,1.56260444]
[1767853634558,2.05824294,3117.1,3116.0,3.20918443]
[1767853635046,2.05824294,3116.9,3115.6,9.70241584]
[1767853635218,0.001,3117.3,3115.8,1.47887249]
[1767853635219,5.26716777,3117.3,3115.8,1.47887249]
[1767853635847,2.05924294,3117.3,3116.0,1.47887249]
[1767853636030,2.05924294,3117.3,3116.2,0.07345192]
[1767853636228,2.05924294,3117.3,3116.3,0.23188725]
[1767853636430,0.001,3117.3,3116.3,0.23188725]
[1767853637155,0.001,3117.3,3116.4,6.4176614]
[1767853638856,0.001,3117.3,3116.5,0.07345192]
[1767853639054,0.001,3117.3,3116.7,6.49049558]
[1767853639354,2.05924294,3117.9,3116.8,1.05391008]
[1767853640736,2.05924294,3117.9,3116.8,1.127362]
[1767853641153,2.05924294,3117.9,3116.9,6.4166319]
[1767853642555,2.05924294,3117.9,3117.0,0.07345192]
[1767853642757,2.05924294,3117.9,3117.1,0.84]
[1767853642949,2.05924294,3117.9,3117.2,0.07345192]
[1767853643338,2.05924294,3117.9,3117.3,6.41580854]
[1767853643656,3.2061181,3119.1,3117.4,2.46578987]
[1767853643657,2.05824294,3119.1,3117.4,2.46578987]
[1767853643862,2.05824294,3119.1,3117.4,2.53924179]
[1767853644059,2.05824294,3118.9,3117.4,2.53924179]
[1767853644260,0.001,3117.6,3117.4,2.53924179]
[1767853644461,2.05824294,3118.9,3117.4,0.47184678]
[1767853644643,2.26406723,3118.8,3117.5,0.68876553]
[1767853645647,2.05824294,3118.7,3117.6,6.41519116]
[1767853645835,2.05824294,3118.7,3117.6,7.25519116]
[1767853646034,2.05824294,3118.7,3117.6,4.04759558]
[1767853646242,2.05824294,3119.2,3117.7,2.06739501]
[1767853646571,2.05824294,3119.2,3117.6,4.04759558]
[1767853646774,2.05824294,3119.0,3117.7,0.36514455]
[1767853647140,2.89824294,3119.0,3117.7,0.36514455]
[1767853647375,0.001,3119.5,3117.7,2.50599148]
[1767853647672,0.001,3119.5,3118.6,3.2065575]
[1767853647835,0.001,3119.5,3118.5,0.84]
[1767853648034,0.001,3119.5,3118.6,3.20654095]
[1767853648248,0.001,3119.5,3118.7,0.39839486]
[1767853648867,2.05824294,3119.3,3117.8,3.20737402]
[1767853649042,2.05824294,3119.3,3118.1,3.20707382]
[1767853649858,3.20595024,3119.2,3118.0,3.20715228]
[1767853650169,2.05824294,3119.1,3117.9,3.20727505]
[1767853650784,2.05824294,3119.1,3116.3,2.14084693]
[1767853651071,16.0297512,3119.2,3116.6,3.20860138]
[1767853651072,2.21824294,3118.9,3116.6,3.20860138]
[1767853651233,2.05824294,3118.7,3117.1,0.07345192]
[1767853651438,2.05824294,3118.5,3117.2,3.20793195]
[1767853651669,2.05824294,3118.5,3117.4,3.20776786]
[1767853651872,0.84701434,3119.0,3117.6,3.20752345]
[1767853651873,0.84,3118.6,3117.6,3.20752345]
[1767853652761,2.89650083,3118.7,3117.5,3.20769307]
[1767853652950,2.05650083,3118.7,3117.5,3.20769307]
[1767853653271,0.84,3118.6,3117.5,3.20769307]
[1767853653672,3.20636142,3118.8,3117.5,3.20769307]
[1767853653864,3.611699,3118.8,3117.6,0.42703343]
[1767853654065,4.451699,3118.8,3117.7,3.2074927]
[1767853654260,0.40533758,3118.8,3117.8,0.07345192]
[1767853654577,4.04629172,3118.9,3117.8,0.07345192]
[1767853655072,2.05650083,3119.1,3118.0,0.07345192]
[1767853655250,2.05750083,3119.5,3118.1,0.07345192]
[1767853655570,4.04575052,3119.4,3118.2,0.07345192]
[1767853655772,2.05650083,3119.3,3118.0,0.07345192]
[1767853655982,0.93080019,3119.2,3118.0,0.28571207]
[1767853656150,0.001,3118.6,3118.0,3.49281605]
[1767853656978,0.001,3118.6,3118.0,6.70000014]
[1767853657182,0.001,3118.6,3118.1,0.07345192]
[1767853658954,0.001,3118.6,3118.1,3.28049295]
[1767853659151,0.001,3118.6,3117.7,0.84]
[1767853659152,2.05750083,3118.6,3117.1,0.002]
[1767853659373,2.05650083,3118.5,3117.4,3.20773962]
[1767853659689,0.841,3118.6,3117.3,1.97569768]
[1767853659887,0.001,3118.6,3117.8,0.07345192]
[1767853660054,0.001,3118.6,3117.9,3.20728684]
[1767853660249,0.001,3118.6,3117.8,3.20735566]
[1767853660492,0.001,3118.6,3117.7,3.20748216]
[1767853660671,0.001,3118.6,3117.8,0.51831798]
[1767853661384,0.001,3118.6,3117.8,2.49401566]
[1767853661754,0.001,3118.6,3117.9,2.81569768]
[1767853662508,0.001,3118.6,3118.1,3.20708123]
[1767853664083,0.001,3118.6,3118.0,3.20718216]
[1767853664382,0.001,3118.6,3118.0,3.86654205]
[1767853666669,0.001,3118.6,3118.0,7.07372614]
[1767853667516,0.001,3118.6,3118.0,3.86654205]
[1767853671796,0.001,3118.6,3118.1,1.97569768]
[1767853672693,0.001,3118.6,3118.1,2.0491496]
[1767853672892,3.20585986,3119.3,3118.3,1.97569768]
[1767853673078,3.20585986,3119.3,3118.3,5.18257322]
[1767853673283,6.41176812,3119.3,3118.3,1.97569768]
[1767853674113,0.001,3119.5,3118.5,1.97569768]
[1767853674925,0.001,3119.5,3118.5,2.0491496]
[1767853675108,0.001,3119.5,3118.6,3.20656704]
[1767853675290,0.001,3119.5,3118.6,3.495482]
[1767853675483,0.001,3119.5,3118.7,1.97569768]
[1767853675688,0.001,3119.5,3118.7,2.0491496]
[1767853676321,0.001,3119.5,3118.7,1.97569768]
[1767853676618,0.001,3119.5,3118.8,0.86777467]
[1767853676813,0.001,3119.5,3118.9,0.84]
[1767853677215,0.001,3119.5,3119.0,3.20615581]
[1767853677407,0.001,3119.5,3118.9,0.84]
[1767853678325,0.001,3119.5,3118.9,4.04622679]
[1767853678539,0.001,3119.5,3118.9,4.77149362]
[1767853681092,0.001,3119.2,3118.9,4.77149362]
[1767853681289,2.05750083,3119.5,3118.9,4.77149362]
[1767853681494,2.05750083,3119.5,3118.9,7.97775223]
[1767853681926,0.001,3119.8,3118.9,7.97775223]
[1767853682094,2.06069314,3119.8,3119.0,0.64998081]
[1767853682300,0.001,3119.8,3119.0,0.64998081]
[1767853683394,0.001,3119.8,3119.0,2.64072296]
[1767853683594,0.001,3119.8,3119.1,1.99074215]
[1767853683790,2.11226615,3120.5,3119.3,1.99074215]
[1767853684104,2.11226615,3120.4,3119.4,0.72526683]
[1767853684309,2.11226615,3120.4,3119.2,1.99074215]
[1767853684616,6.40939624,3120.5,3119.2,1.99074215]
[1767853684816,2.11226615,3120.4,3119.2,1.99074215]
[1767853685069,2.11226615,3120.2,3118.9,3.20625181]
[1767853685325,2.11226615,3120.2,3119.1,3.20605277]
[1767853685522,9.36066239,3120.5,3119.2,1.99074215]
[1767853685827,8.52166239,3120.5,3119.2,2.06419407]
[1767853686122,2.11226615,3120.4,3119.3,4.04484746]
[1767853686332,2.11226615,3120.4,3118.9,3.20618955]
[1767853686911,2.11226615,3120.4,3118.9,5.1969317]
[1767853687110,2.11226615,3120.2,3119.0,0.60359317]
[1767853687998,8.52231709,3120.1,3119.0,0.60359317]
[1767853688425,2.11226615,3120.0,3119.0,0.60359317]
[1767853688629,2.11226615,3120.0,3118.9,1.99074215]
[1767853688826,2.11226615,3120.0,3118.9,5.19697947]
[1767853689028,2.11226615,3120.0,3118.9,1.99074215]
[1767853689630,2.11226615,3120.0,3118.8,0.839]
[1767853690134,2.11226615,3119.8,3118.6,1.99074215]
[1767853690434,2.11226615,3119.8,3118.3,0.002]
[1767853690435,2.11226615,3119.6,3118.3,0.002]
[1767853690613,2.11226615,3119.5,3118.3,0.002]
[1767853691342,2.11226615,3119.5,3116.2,1.68045408]
[1767853691518,2.11226615,3117.4,3115.4,0.07345192]
[1767853691705,0.90619493,3117.5,3115.1,1.99274215]
[1767853691706,2.11226615,3117.2,3115.1,1.99274215]
[1767853691901,2.11226615,3117.1,3115.1,1.99274215]
[1767853692104,2.11226615,3116.9,3115.1,1.99274215]
[1767853692306,2.11226615,3116.7,3115.1,0.002]
[1767853692606,0.839,3116.8,3115.1,0.002]
[1767853692607,2.11226615,3116.5,3115.1,0.002]
[1767853693605,0.839,3116.4,3115.1,0.002]
[1767853693841,0.839,3116.4,3115.8,0.002]
[1767853694142,2.11226615,3116.3,3115.1,0.002]
[1767853694307,6.41807328,3116.2,3115.1,0.002]
[1767853694721,6.75980254,3116.2,3115.1,0.002]
[1767853694924,0.84,3116.1,3115.1,0.002]
[1767853695128,3.20903664,3116.2,3115.1,0.002]
[1767853695328,3.20903664,3116.2,3115.1,0.07545192]
[1767853695832,3.20903664,3116.2,3115.1,0.91545192]
[1767853696423,6.41745546,3116.5,3115.1,0.91545192]
[1767853696935,3.20872773,3116.5,3115.3,2.06419407]
[1767853697142,3.20821302,3117.0,3115.6,0.07345192]
[1767853697312,6.41642604,3117.0,3115.6,0.07345192]
[1767853697513,6.4132205,3117.0,3115.6,0.07345192]
[1767853697833,6.4132205,3117.0,3115.6,2.06419407]
[1767853698134,3.20500748,3117.0,3115.8,0.07345192]
[1767853698310,6.41560274,3117.4,3115.9,0.29041941]
[1767853698512,9.62340411,3117.4,3115.9,0.29041941]
[1767853699037,11.73567026,3117.4,3115.9,0.29041941]
[1767853699407,11.73567026,3117.4,3115.9,2.28116156]
[1767853700055,11.73567026,3117.4,3115.9,5.49049543]
[1767853700252,11.73567026,3117.4,3116.0,0.62984666]
[1767853700535,2.11226615,3117.3,3116.0,0.55639474]
[1767853700707,2.11226615,3117.3,3115.9,2.28116156]
[1767853701317,10.46340411,3117.4,3115.9,2.28116156]
[1767853702039,10.46340411,3117.4,3116.0,1.99074215]
[1767853702040,9.62340411,3117.4,3116.0,1.99074215]
[1767853702333,10.46340411,3117.4,3116.0,1.99074215]
[1767853702930,10.46340411,3117.4,3115.9,0.29041941]
[1767853702931,2.11226615,3117.3,3115.9,0.29041941]
[1767853703114,2.11226615,3117.2,3115.7,0.91345192]
[1767853703511,2.11226615,3117.2,3115.7,6.11374478]
[1767853704117,3.20780137,3117.4,3116.1,2.06419407]
[1767853704305,3.20780137,3117.4,3116.3,1.99074215]
[1767853704536,3.20780137,3117.4,3116.4,2.18981637]